[Event "CZE-ch U16 Girls 2020"]
[Site "Kouty nad Desnou"]
[Date "2020.03.09"]
[Round "4.8"]
[White "Zilava, Anezka"]
[Black "Kuncicka, Klara"]
[Result "0-1"]
[ECO "C50"]
[WhiteElo "1224"]
[BlackElo "1223"]
[Annotator "NA"]
[PlyCount "50"]
[EventDate "2020.03.07"]
[EventCountry "CZE"]
[SourceTitle "playchess.com"]
[Source "ChessBase"]
[SourceQuality "1"]
[TimeControl "5400+30"]

1. e4 {[%emt 0:00:00]} e5 {[%emt 0:00:19]} 2. Nf3 {[%emt 0:00:00]} Nc6 {[%emt 0:00:05]} 3. Bc4 {[%emt 0:00:00]} Bc5 {[%emt 0:00:30]} 4. Nc3 {[%emt 0:00:02]} d6 {[%emt 0:00:33]} 5. d3 {[%emt 0:00:30]} h6 {[%emt 0:00:06]} 6. Be3 {[%emt 0:00:09]} Bb6 {[%emt 0:00:10]} 7. h3 {[%emt 0:00:28]} Be6 {[%emt 0:00:20]} 8. Bb3 {[%emt 0:00:12]} Qd7 {[%emt 0:00:18]} 9. Nd5 {[%emt 0:01:20]} Bxe3 {[%emt 0:01:05]} 10. fxe3 {[%emt 0:00:57]} Nge7 {[%emt 0:00:47]} 11. Nxe7 {[%emt 0:00:29]} Qxe7 {[%emt 0:01:26]} 12. Ba4 {[%emt 0:02:20]} Bd7 {[%emt 0:01:10]} 13. Qd2 {[%emt 0:00:42]} O-O-O {[%emt 0:07:34]} 14. Qc3 {[%emt 0:02:05]} Nb8 {[%emt 0:02:10]} 15. Bb3 {[%emt 0:02:15]} Rhf8 {[%emt 0:03:25]} 16. O-O-O {[%emt 0:00:36]} Nc6 {[%emt 0:07:39]} 17. Rhe1 {[%emt 0:03:57]} f5 {[%emt 0:00:34]} 18. exf5 {[%emt 0:00:27]} Bxf5 {[%emt 0:01:01]} 19. e4 {[%emt 0:00:06]} Bxh3 {[%emt 0:01:15]} 20. Rd2 {[%emt 0:02:19]} Bxg2 {[%emt 0:02:33]} 21. Ng1 {[%emt 0:02:10]} Qg5 {[%emt 0:04:13]} 22. Kb1 {[%emt 0:02:58]} Rf6 {[%emt 0:08:07]} 23. Bd5 {[%emt 0:01:52]} Rdf8 {[%emt 0:02:13]} 24. Bxc6 {[%emt 0:01:04]} bxc6 {[%emt 0:00:11]} 25. Qxc6 {[%emt 0:01:36]} Qxd2 {[%emt 0:02:21]} 0-1

[Event "CZE-ch U16 Girls 2020"]
[Site "Kouty nad Desnou"]
[Date "2020.03.09"]
[Round "4.9"]
[White "Saskova, Renata"]
[Black "Ruzickova, Ema"]
[Result "0-1"]
[ECO "B13"]
[WhiteElo "1191"]
[BlackElo "1409"]
[Annotator "NA"]
[PlyCount "114"]
[EventDate "2020.03.07"]
[EventCountry "CZE"]
[SourceTitle "playchess.com"]
[Source "ChessBase"]
[SourceQuality "1"]
[TimeControl "5400+30"]

1. e4 {[%emt 0:00:00]} c5 {[%emt 0:00:00]} 2. c3 {[%emt 0:00:00]} d5 {[%emt 0:00:00]} 3. exd5 {[%emt 0:00:00]} Qxd5 {[%emt 0:00:17]} 4. d4 {[%emt 0:00:14]} Nf6 {[%emt 0:00:34]} 5. Nf3 {[%emt 0:01:53]} Bg4 {[%emt 0:01:33]} 6. Be2 {[%emt 0:00:26]} e6 {[%emt 0:02:42]} 7. O-O {[%emt 0:03:20]} Be7 {[%emt 0:05:32]} 8. Be3 {[%emt 0:00:49]} cxd4 {[%emt 0:01:40]} 9. cxd4 {[%emt 0:00:18]} O-O {[%emt 0:01:54]} 10. Nc3 {[%emt 0:01:01]} Qd8 {[%emt 0:02:01]} 11. Rc1 {[%emt 0:03:27]} Nc6 {[%emt 0:04:21]} 12. Qd2 {[%emt 0:01:24]} Rc8 {[%emt 0:04:09]} 13. Rfd1 {[%emt 0:04:37]} a6 {[%emt 0:10:20]} 14. a3 {[%emt 0:04:58]} h6 {[%emt 0:04:10]} 15. h3 {[%emt 0:03:49]} Bh5 {[%emt 0:02:21]} 16. d5 {[%emt 0:21:36]} exd5 {[%emt 0:05:28]} 17. Nxd5 {[%emt 0:00:55]} Nxd5 {[%emt 0:00:59]} 18. Qxd5 {[%emt 0:00:30]} Bg6 {[%emt 0:01:27]} 19. Ne5 {[%emt 0:10:47]} Qxd5 {[%emt 0:05:00]} 20. Rxd5 {[%emt 0:00:31]} Nxe5 {[%emt 0:07:00]} 21. Rxe5 {[%emt 0:04:39]} Rxc1+ {[%emt 0:04:00]} 22. Bxc1 {[%emt 0:00:25]} Bf6 {[%emt 0:00:26]} 23. Rc5 {[%emt 0:01:40]} Rd8 {[%emt 0:09:36]} 24. Bf3 {[%emt 0:06:17]} Rd7 {[%emt 0:07:11]} 25. b4 {[%emt 0:03:06]} Kh7 {[%emt 0:08:18]} 26. b5 {[%emt 0:09:00]} Bd4 {[%emt 0:05:53]} 27. Rc4 {[%emt 0:10:43]} axb5 {[%emt 0:01:44]} 28. Rb4 {[%emt 0:00:44]} Bd3 {[%emt 0:01:04]} 29. Bxb7 {[%emt 0:01:45]} Bc5 {[%emt 0:01:19]} 30. Bc6 {[%emt 0:01:30]} Rc7 {[%emt 0:00:36]} 31. Bxb5 {[%emt 0:03:54]} Bxb4 {[%emt 0:01:06]} 32. Bxd3+ {[%emt 0:00:09]} Kg8 {[%emt 0:00:16]} 33. Bb2 {[%emt 0:01:23]} Bxa3 {[%emt 0:00:36]} 34. Bxa3 {[%emt 0:00:36]} Rc3 {[%emt 0:00:06]} 35. Bb2 {[%emt 0:00:32]} Rxd3 {[%emt 0:00:09]} 36. Kf1 {[%emt 0:00:24]} Rd2 {[%emt 0:00:34]} 37. Be5 {[%emt 0:00:25]} f5 {[%emt 0:00:49]} 38. f4 {[%emt 0:00:35]} Kf7 {[%emt 0:00:45]} 39. h4 {[%emt 0:00:37]} Ra2 {[%emt 0:01:48]} 40. g3 {[%emt 0:00:20]} g6 {[%emt 0:00:59]} 41. Kg1 {[%emt 0:00:32]} Re2 {[%emt 0:00:39]} 42. Kf1 {[%emt 0:00:00]} Re4 {[%emt 0:00:00]} 43. Bd6 {[%emt 0:00:00]} Re8 {[%emt 0:00:00]} 44. Bc5 {[%emt 0:00:00]} g5 {[%emt 0:00:00]} 45. hxg5 {[%emt 0:00:00]} hxg5 {[%emt 0:00:00]} 46. fxg5 {[%emt 0:00:00]} Kg6 {[%emt 0:00:00]} 47. Kf2 {[%emt 0:00:00]} Kxg5 {[%emt 0:00:00]} 48. Be3+ {[%emt 0:00:00]} Kg4 {[%emt 0:00:00]} 49. Bf4 {[%emt 0:00:00]} Ra8 {[%emt 0:00:00]} 50. Be5 {[%emt 0:00:00]} Ra2+ {[%emt 0:00:00]} 51. Kf1 {[%emt 0:00:00]} Kf3 {[%emt 0:00:00]} 52. Kg1 {[%emt 0:00:00]} Rg2+ {[%emt 0:00:00]} 53. Kf1 {[%emt 0:00:00]} Rxg3 {[%emt 0:00:00]} 54. Bxg3 {[%emt 0:00:00]} Kxg3 {[%emt 0:00:00]} 55. Kg1 {[%emt 0:00:00]} f4 {[%emt 0:00:00]} 56. Kf1 {[%emt 0:00:00]} Kf3 {[%emt 0:00:00]} 57. Kg1 {[%emt 0:00:00]} Ke2 {[%emt 0:00:00]} 0-1

[Event "CZE-ch U16 Girls 2020"]
[Site "Kouty nad Desnou"]
[Date "2020.03.10"]
[Round "5.1"]
[White "Dvorakova, Olga"]
[Black "Stastna, Martina"]
[Result "1-0"]
[ECO "D36"]
[WhiteElo "1793"]
[BlackElo "1700"]
[Annotator "NA RC"]
[PlyCount "101"]
[EventDate "2020.03.07"]
[EventCountry "CZE"]
[SourceTitle "playchess.com"]
[Source "ChessBase"]
[SourceQuality "1"]
[TimeControl "5400+30"]

1. d4 {[%emt 0:00:00]} d5 {[%emt 0:00:00]} 2. c4 {[%emt 0:00:00]} e6 {[%emt 0:00:07]} 3. cxd5 {[%emt 0:00:00]} exd5 {[%emt 0:00:23]} 4. Nc3 {[%emt 0:00:05]} Nf6 {[%emt 0:01:01]} 5. Bg5 {[%emt 0:00:48]} c6 {[%emt 0:01:01]} 6. e3 {[%emt 0:00:40]} Be7 {[%emt 0:01:41]} 7. Bd3 {[%emt 0:01:15]} O-O {[%emt 0:00:48]} 8. Qc2 {[%emt 0:00:26]} Nbd7 {[%emt 0:02:14]} 9. Nf3 {[%emt 0:00:19]} Re8 {[%emt 0:00:47]} 10. O-O {[%emt 0:00:13]} Nf8 {[%emt 0:00:31]} 11. h3 {[%emt 0:00:57]} g6 {[%emt 0:01:21]} 12. Rab1 {[%emt 0:03:01]} Ne6 {[%emt 0:01:40]} 13. Bh4 {[%emt 0:00:34]} Ng7 {[%emt 0:02:06]} 14. b4 {[%emt 0:02:49]} a6 {[%emt 0:01:20]} 15. a4 {[%emt 0:01:00]} Bf5 {[%emt 0:03:00]} 16. b5 {[%emt 0:04:15]} cxb5 {[%emt 0:04:30]} 17. axb5 {[%emt 0:00:31]} a5 {[%emt 0:01:00]} 18. Bxf5 {[%emt 0:12:11]} Nxf5 {[%emt 0:02:39]} 19. Bxf6 {[%emt 0:00:15]} Bxf6 {[%emt 0:00:19]} 20. Qa2 {[%emt 0:06:40]} Ne7 {[%emt 0:05:18]} 21. b6 {[%emt 0:02:07]} Ra6 {[%emt 0:24:44]} 22. Rb5 {[%emt 0:12:58]} Rxb6 {[%emt 0:06:12]} 23. Qxa5 {[%emt 0:00:16]} Rc6 {[%emt 0:10:12]} 24. Nxd5 {[%emt 0:01:43]} Qxa5 {[%emt 0:01:04]} 25. Nxe7+ {[%emt 0:10:36]} Rxe7 {[%emt 0:00:58]} 26. Rxa5 {[%emt 0:00:02]} Rb6 {[%emt 0:00:26]} 27. Rc1 {[%emt 0:06:16]} Rb2 {[%emt 0:03:11]} 28. d5 {[%emt 0:07:19]} Rd7 {[%emt 0:02:59]} 29. e4 {[%emt 0:00:48]} Re2 {[%emt 0:00:54]} 30. Re1 {[%emt 0:02:44]} Rxe1+ {[%emt 0:01:28]} 31. Nxe1 {[%emt 0:00:02]} Bc3 {[%emt 0:00:40]} 32. Ra8+ {[%emt 0:00:06]} Kg7 {[%emt 0:00:03]} 33. Nd3 {[%emt 0:00:56]} Bd4 {[%emt 0:02:31]} 34. Ra4 {[%emt 0:02:30]} Bc3 {[%emt 0:01:31]} 35. Rc4 {[%emt 0:05:20]} Ba5 {[%emt 0:03:11]} 36. f4 {[%emt 0:13:17]} b5 {[%emt 0:02:25]} 37. Rc8 {[%emt 0:01:08]} f5 {[%emt 0:01:34]} 38. Nc5 {[%emt 0:03:50]} Bb6 {[%emt 0:00:26]} 39. Kf1 {[%emt 0:00:16]} Bxc5 {[%emt 0:00:58]} 40. Rxc5 {[%emt 0:00:02]} fxe4 {[%emt 0:00:12]} 41. Rxb5 {[%emt 0:00:34]} Kf6 {[%emt 0:00:40]} 42. Ke2 {[%emt 0:01:06]} g5 {[%emt 0:00:53]} 43. Ke3 {[%emt 0:00:00]} gxf4+ {[%emt 0:00:00]} 44. Kxe4 {[%emt 0:00:00]} Rg7 {[%emt 0:00:00]} 45. Rb6+ {[%emt 0:00:00]} Kg5 {[%emt 0:00:00]} 46. d6 {[%emt 0:00:00]} Ra7 {[%emt 0:00:00]} 47. Ke5 {[%emt 0:00:00]} Ra2 {[%emt 0:00:00]} 48. d7 {[%emt 0:00:00]} Rd2 {[%emt 0:00:00]} 49. Rd6 {[%emt 0:00:00]} Re2+ {[%emt 0:00:00]} 50. Kd5 {[%emt 0:00:00]} Rd2+ {[%emt 0:00:00]} 51. Ke6 {[%emt 0:00:00]} 1-0

[Event "CZE-ch U16 Girls 2020"]
[Site "Kouty nad Desnou"]
[Date "2020.03.10"]
[Round "5.2"]
[White "Gregurkova, Nikola"]
[Black "Vavrinkova, Anna"]
[Result "1-0"]
[ECO "B35"]
[WhiteElo "1642"]
[BlackElo "1622"]
[Annotator "NA RC"]
[PlyCount "35"]
[EventDate "2020.03.07"]
[EventCountry "CZE"]
[SourceTitle "playchess.com"]
[Source "ChessBase"]
[SourceQuality "1"]
[TimeControl "5400+30"]

1. e4 {[%emt 0:00:00]} c5 {[%emt 0:00:00]} 2. Nf3 {[%emt 0:00:00]} Nc6 {[%emt 0:00:15]} 3. d4 {[%emt 0:01:05]} cxd4 {[%emt 0:01:04]} 4. Nxd4 {[%emt 0:00:30]} g6 {[%emt 0:01:13]} 5. Nc3 {[%emt 0:02:08]} Bg7 {[%emt 0:02:20]} 6. Be3 {[%emt 0:01:15]} Nf6 {[%emt 0:02:07]} 7. Bc4 {[%emt 0:05:02]} O-O {[%emt 0:02:16]} 8. Bb3 {[%emt 0:01:31]} a5 {[%emt 0:02:03]} 9. a4 {[%emt 0:11:38]} d5 {[%emt 0:12:01]} 10. exd5 {[%emt 0:04:55]} Nb4 {[%emt 0:00:07]} 11. Ndb5 {[%emt 0:03:53]} Bf5 {[%emt 0:03:50]} 12. O-O {[%emt 0:06:06]} Qd7 {[%emt 0:05:11]} 13. Qd2 {[%emt 0:07:58]} Rfd8 {[%emt 0:05:43]} 14. Rad1 {[%emt 0:05:59]} Ne4 {[%emt 0:01:38]} 15. Nxe4 {[%emt 0:01:53]} Bxe4 {[%emt 0:00:12]} 16. c3 {[%emt 0:12:50]} Na6 {[%emt 0:17:59]} 17. f3 {[%emt 0:06:50]} Bf5 {[%emt 0:00:08]} 18. g4 {[%emt 0:02:29]} 1-0

[Event "CZE-ch U16 Girls 2020"]
[Site "Kouty nad Desnou"]
[Date "2020.03.10"]
[Round "5.3"]
[White "Leksova, Sona"]
[Black "Dudova, Pavlina"]
[Result "1/2-1/2"]
[ECO "C01"]
[WhiteElo "1645"]
[BlackElo "1499"]
[Annotator "NA"]
[PlyCount "99"]
[EventDate "2020.03.07"]
[EventCountry "CZE"]
[SourceTitle "playchess.com"]
[Source "ChessBase"]
[SourceQuality "1"]
[TimeControl "5400+30"]

1. e4 {[%emt 0:00:00]} e6 {[%emt 0:00:00]} 2. d4 {[%emt 0:00:00]} d5 {[%emt 0:00:00]} 3. exd5 {[%emt 0:00:05]} exd5 {[%emt 0:00:00]} 4. c4 {[%emt 0:00:58]} c6 {[%emt 0:03:42]} 5. Nc3 {[%emt 0:01:29]} Nf6 {[%emt 0:07:29]} 6. Nf3 {[%emt 0:03:50]} Bf5 {[%emt 0:07:59]} 7. Bg5 {[%emt 0:01:54]} Be7 {[%emt 0:04:22]} 8. cxd5 {[%emt 0:04:16]} Nxd5 {[%emt 0:01:55]} 9. Nxd5 {[%emt 0:00:55]} cxd5 {[%emt 0:01:14]} 10. Bxe7 {[%emt 0:03:33]} Qxe7+ {[%emt 0:00:48]} 11. Be2 {[%emt 0:00:25]} O-O {[%emt 0:01:23]} 12. O-O {[%emt 0:00:26]} Nc6 {[%emt 0:01:06]} 13. Re1 {[%emt 0:04:36]} Rfe8 {[%emt 0:07:36]} 14. Bb5 {[%emt 0:04:50]} Qd6 {[%emt 0:02:03]} 15. Bxc6 {[%emt 0:03:54]} Qxc6 {[%emt 0:01:55]} 16. Rc1 {[%emt 0:03:37]} Qb6 {[%emt 0:03:39]} 17. Qd2 {[%emt 0:02:45]} Kf8 {[%emt 0:10:34]} 18. Rxe8+ {[%emt 0:14:29]} Rxe8 {[%emt 0:00:22]} 19. Re1 {[%emt 0:00:55]} Rc8 {[%emt 0:08:01]} 20. Qe3 {[%emt 0:04:39]} Be6 {[%emt 0:02:27]} 21. Ng5 {[%emt 0:00:48]} Kg8 {[%emt 0:03:07]} 22. h3 {[%emt 0:03:04]} Rc6 {[%emt 0:02:49]} 23. Qd3 {[%emt 0:02:35]} g6 {[%emt 0:01:46]} 24. Nxe6 {[%emt 0:01:01]} Rxe6 {[%emt 0:00:26]} 25. Rxe6 {[%emt 0:00:19]} fxe6 {[%emt 0:02:32]} 26. Qc3 {[%emt 0:01:06]} Kf7 {[%emt 0:03:08]} 27. g4 {[%emt 0:01:49]} h6 {[%emt 0:06:05]} 28. Kg2 {[%emt 0:02:34]} g5 {[%emt 0:01:08]} 29. Qd2 {[%emt 0:01:16]} Kg7 {[%emt 0:02:23]} 30. b3 {[%emt 0:01:06]} Qa6 {[%emt 0:01:54]} 31. a4 {[%emt 0:03:20]} Qc6 {[%emt 0:01:22]} 32. h4 {[%emt 0:05:48]} gxh4 {[%emt 0:03:45]} 33. Kh3 {[%emt 0:00:29]} Qd6 {[%emt 0:00:58]} 34. Qe3 {[%emt 0:00:16]} Qe7 {[%emt 0:01:37]} 35. Qe5+ {[%emt 0:01:23]} Kh7 {[%emt 0:00:44]} 36. f4 {[%emt 0:00:45]} Qf7 {[%emt 0:02:27]} 37. Kxh4 {[%emt 0:00:49]} a6 {[%emt 0:02:08]} 38. a5 {[%emt 0:02:16]} Qe7+ {[%emt 0:01:21]} 39. g5 {[%emt 0:00:30]} hxg5+ {[%emt 0:01:01]} 40. Qxg5 {[%emt 0:01:12]} Qb4 {[%emt 0:01:55]} 41. Qh5+ {[%emt 0:00:47]} Kg7 {[%emt 0:00:29]} 42. Qe5+ {[%emt 0:00:37]} Kf7 {[%emt 0:00:45]} 43. Qc7+ {[%emt 0:00:18]} Ke8 {[%emt 0:00:00]} 44. Qb6 {[%emt 0:00:00]} Qe7+ {[%emt 0:00:00]} 45. Kg4 {[%emt 0:00:00]} Qg7+ {[%emt 0:00:00]} 46. Kf3 {[%emt 0:00:00]} Qf7 {[%emt 0:00:00]} 47. Qc5 {[%emt 0:00:00]} Qh5+ {[%emt 0:00:00]} 48. Kg3 {[%emt 0:00:00]} Qg6+ {[%emt 0:00:00]} 49. Kf2 {[%emt 0:00:00]} Kd7 {[%emt 0:00:00]} 50. Qb6 {[%emt 0:00:00]} 1/2-1/2

[Event "CZE-ch U16 Girls 2020"]
[Site "Kouty nad Desnou"]
[Date "2020.03.10"]
[Round "5.4"]
[White "Vsetulova, Viktorie"]
[Black "Strnadova, Monika"]
[Result "1-0"]
[ECO "A48"]
[WhiteElo "1334"]
[BlackElo "1514"]
[Annotator "NA RC"]
[PlyCount "123"]
[EventDate "2020.03.07"]
[EventCountry "CZE"]
[SourceTitle "playchess.com"]
[Source "ChessBase"]
[SourceQuality "1"]
[TimeControl "5400+30"]

1. d4 {[%emt 0:00:00]} g6 {[%emt 0:25:59]} 2. Nf3 {[%emt 0:00:00]} Nf6 {[%emt 0:00:09]} 3. Bf4 {[%emt 0:00:00]} Bg7 {[%emt 0:00:16]} 4. e3 {[%emt 0:00:14]} d6 {[%emt 0:00:24]} 5. Bd3 {[%emt 0:00:34]} O-O {[%emt 0:00:31]} 6. O-O {[%emt 0:01:03]} Nbd7 {[%emt 0:00:36]} 7. c3 {[%emt 0:00:50]} Re8 {[%emt 0:00:20]} 8. e4 {[%emt 0:01:08]} a6 {[%emt 0:01:19]} 9. a4 {[%emt 0:04:25]} b6 {[%emt 0:01:55]} 10. Nbd2 {[%emt 0:03:20]} Bb7 {[%emt 0:02:39]} 11. Qc2 {[%emt 0:11:03]} e5 {[%emt 0:05:25]} 12. Bg5 {[%emt 0:06:33]} d5 {[%emt 0:03:42]} 13. Rfe1 {[%emt 0:13:03]} c5 {[%emt 0:08:13]} 14. b3 {[%emt 0:20:01]} Rc8 {[%emt 0:03:02]} 15. Qb1 {[%emt 0:04:37]} h6 {[%emt 0:01:23]} 16. Bh4 {[%emt 0:05:37]} g5 {[%emt 0:00:55]} 17. Bg3 {[%emt 0:00:33]} cxd4 {[%emt 0:01:56]} 18. cxd4 {[%emt 0:01:14]} exd4 {[%emt 0:01:06]} 19. e5 {[%emt 0:04:33]} Ng4 {[%emt 0:01:24]} 20. Bh7+ {[%emt 0:07:14]} Kh8 {[%emt 0:00:57]} 21. Bf5 {[%emt 0:00:09]} Ngxe5 {[%emt 0:01:47]} 22. Nxe5 {[%emt 0:00:46]} Nxe5 {[%emt 0:04:43]} 23. Bxc8 {[%emt 0:00:37]} Qxc8 {[%emt 0:01:06]} 24. Bxe5 {[%emt 0:01:15]} Rxe5 {[%emt 0:01:54]} 25. Rxe5 {[%emt 0:00:54]} Bxe5 {[%emt 0:00:18]} 26. Nf3 {[%emt 0:00:21]} Bg7 {[%emt 0:01:12]} 27. Qd3 {[%emt 0:00:51]} Qc3 {[%emt 0:03:25]} 28. Rd1 {[%emt 0:01:10]} Qxd3 {[%emt 0:03:53]} 29. Rxd3 {[%emt 0:00:07]} b5 {[%emt 0:00:46]} 30. axb5 {[%emt 0:01:37]} axb5 {[%emt 0:00:15]} 31. Nxd4 {[%emt 0:00:19]} Bxd4 {[%emt 0:00:13]} 32. Rxd4 {[%emt 0:00:06]} Kg7 {[%emt 0:00:16]} 33. f3 {[%emt 0:00:23]} Kf6 {[%emt 0:01:45]} 34. Kf2 {[%emt 0:00:07]} Ke5 {[%emt 0:00:53]} 35. Ke3 {[%emt 0:00:08]} f5 {[%emt 0:04:07]} 36. Rd1 {[%emt 0:00:48]} f4+ {[%emt 0:04:06]} 37. Kd3 {[%emt 0:00:17]} d4 {[%emt 0:02:05]} 38. Re1+ {[%emt 0:01:19]} Kd5 {[%emt 0:01:50]} 39. Re8 {[%emt 0:02:11]} Kc5 {[%emt 0:01:39]} 40. Rd8 {[%emt 0:01:06]} Kb4 {[%emt 0:00:45]} 41. Kxd4 {[%emt 0:00:27]} Kxb3 {[%emt 0:00:16]} 42. Kc5 {[%emt 0:00:29]} g4 {[%emt 0:01:35]} 43. Rb8 {[%emt 0:01:00]} gxf3 {[%emt 0:01:31]} 44. gxf3 {[%emt 0:00:30]} Bxf3 {[%emt 0:01:02]} 45. Rxb5+ {[%emt 0:00:26]} Kc2 {[%emt 0:00:28]} 46. Kd4 {[%emt 0:00:25]} Be2 {[%emt 0:00:42]} 47. Rf5 {[%emt 0:00:38]} f3 {[%emt 0:00:39]} 48. Ke3 {[%emt 0:00:12]} Kc3 {[%emt 0:01:33]} 49. Rf6 {[%emt 0:00:28]} h5 {[%emt 0:00:42]} 50. Rh6 {[%emt 0:00:08]} Bd1 {[%emt 0:01:30]} 51. Kf2 {[%emt 0:00:15]} Kd4 {[%emt 0:00:25]} 52. Rxh5 {[%emt 0:00:09]} Ke4 {[%emt 0:00:11]} 53. h4 {[%emt 0:00:21]} Kf4 {[%emt 0:00:24]} 54. Rg5 {[%emt 0:00:07]} Bc2 {[%emt 0:00:52]} 55. Rg3 {[%emt 0:01:16]} Be4 {[%emt 0:00:29]} 56. h5 {[%emt 0:00:12]} Kf5 {[%emt 0:00:15]} 57. h6 {[%emt 0:00:36]} Kf6 {[%emt 0:00:07]} 58. Ke3 {[%emt 0:03:04]} Bb1 {[%emt 0:03:12]} 59. Kxf3 {[%emt 0:00:16]} Bc2 {[%emt 0:00:15]} 60. Kf4 {[%emt 0:01:18]} Bb1 {[%emt 0:00:23]} 61. Rg7 {[%emt 0:01:03]} Bg6 {[%emt 0:04:03]} 62. Kg4 {[%emt 0:01:39]} 1-0

[Event "CZE-ch U16 Girls 2020"]
[Site "Kouty nad Desnou"]
[Date "2020.03.10"]
[Round "5.5"]
[White "Semova, Lada"]
[Black "Maresova, Michaela"]
[Result "1/2-1/2"]
[ECO "D36"]
[WhiteElo "1477"]
[BlackElo "1422"]
[Annotator "NA RC"]
[PlyCount "96"]
[EventDate "2020.03.07"]
[EventCountry "CZE"]
[SourceTitle "playchess.com"]
[Source "ChessBase"]
[SourceQuality "1"]
[TimeControl "5400+30"]

1. d4 {[%emt 0:00:00]} d5 {[%emt 0:00:00]} 2. c4 {[%emt 0:00:00]} e6 {[%emt 0:00:00]} 3. Nc3 {[%emt 0:00:00]} Nf6 {[%emt 0:00:00]} 4. cxd5 {[%emt 0:00:00]} exd5 {[%emt 0:00:08]} 5. Bg5 {[%emt 0:00:00]} Be7 {[%emt 0:00:44]} 6. e3 {[%emt 0:00:01]} c6 {[%emt 0:00:08]} 7. Qc2 {[%emt 0:00:04]} Nbd7 {[%emt 0:00:52]} 8. Bd3 {[%emt 0:00:11]} O-O {[%emt 0:01:10]} 9. Nge2 {[%emt 0:02:07]} Re8 {[%emt 0:01:25]} 10. O-O-O {[%emt 0:01:31]} Nf8 {[%emt 0:05:31]} 11. h4 {[%emt 0:03:34]} Nh5 {[%emt 0:14:01]} 12. Bxe7 {[%emt 0:00:46]} Qxe7 {[%emt 0:00:30]} 13. Kb1 {[%emt 0:01:57]} g6 {[%emt 0:06:37]} 14. Rdg1 {[%emt 0:00:31]} Nf6 {[%emt 0:08:35]} 15. Nd1 {[%emt 0:11:56]} h5 {[%emt 0:10:21]} 16. Nf4 {[%emt 0:14:24]} Ne6 {[%emt 0:08:47]} 17. Nh3 {[%emt 0:01:55]} Ng7 {[%emt 0:07:37]} 18. f3 {[%emt 0:00:25]} Nf5 {[%emt 0:10:38]} 19. Re1 {[%emt 0:14:11]} Nxh4 {[%emt 0:09:09]} 20. e4 {[%emt 0:06:27]} dxe4 {[%emt 0:00:51]} 21. fxe4 {[%emt 0:04:07]} Nd7 {[%emt 0:04:54]} 22. Qe2 {[%emt 0:02:02]} Qd8 {[%emt 0:06:08]} 23. Qf2 {[%emt 0:05:39]} g5 {[%emt 0:01:09]} 24. Nxg5 {[%emt 0:04:38]} Qxg5 {[%emt 0:00:30]} 25. Qxh4 {[%emt 0:00:01]} Qxh4 {[%emt 0:01:20]} 26. Rxh4 {[%emt 0:00:04]} Nf6 {[%emt 0:00:38]} 27. e5 {[%emt 0:00:21]} Nd5 {[%emt 0:00:08]} 28. Rxh5 {[%emt 0:00:48]} Nf4 {[%emt 0:01:28]} 29. Rg5+ {[%emt 0:00:09]} Kf8 {[%emt 0:00:13]} 30. Bh7 {[%emt 0:03:40]} Ke7 {[%emt 0:00:46]} 31. Ne3 {[%emt 0:05:29]} Be6 {[%emt 0:00:31]} 32. Rf1 {[%emt 0:03:07]} Nd5 {[%emt 0:00:22]} 33. Nf5+ {[%emt 0:01:03]} Bxf5+ {[%emt 0:00:29]} 34. Rfxf5 {[%emt 0:02:51]} Rad8 {[%emt 0:00:42]} 35. Rg7 {[%emt 0:02:07]} Rf8 {[%emt 0:00:12]} 36. Rf3 {[%emt 0:03:54]} Nc7 {[%emt 0:00:31]} 37. Rg4 {[%emt 0:05:20]} Ne6 {[%emt 0:00:31]} 38. Rd3 {[%emt 0:00:02]} Rh8 {[%emt 0:00:38]} 39. Bf5 {[%emt 0:00:52]} Rh5 {[%emt 0:00:33]} 40. Bxe6 {[%emt 0:00:30]} Kxe6 {[%emt 0:00:08]} 41. Kc2 {[%emt 0:00:28]} Rd5 {[%emt 0:00:42]} 42. Rf4 {[%emt 0:01:12]} Rg5 {[%emt 0:00:38]} 43. Rf6+ {[%emt 0:01:55]} Ke7 {[%emt 0:00:11]} 44. g3 {[%emt 0:00:23]} c5 {[%emt 0:00:39]} 45. dxc5 {[%emt 0:00:00]} Rxc5+ {[%emt 0:00:00]} 46. Kb3 {[%emt 0:00:00]} Rcxe5 {[%emt 0:00:00]} 47. Rdf3 {[%emt 0:00:00]} Rg7 {[%emt 0:00:00]} 48. Kc4 {[%emt 0:00:00]} Rg4+ {[%emt 0:00:00]} 1/2-1/2

[Event "CZE-ch U16 Girls 2020"]
[Site "Kouty nad Desnou"]
[Date "2020.03.10"]
[Round "5.6"]
[White "Kuncicka, Klara"]
[Black "Londinova, Jasmina Marie"]
[Result "1-0"]
[ECO "C55"]
[WhiteElo "1223"]
[BlackElo "1155"]
[Annotator "NA RC"]
[PlyCount "39"]
[EventDate "2020.03.07"]
[EventCountry "CZE"]
[SourceTitle "playchess.com"]
[Source "ChessBase"]
[SourceQuality "1"]
[TimeControl "5400+30"]

1. e4 {[%emt 0:00:00]} e5 {[%emt 0:00:00]} 2. Nf3 {[%emt 0:00:00]} Nc6 {[%emt 0:00:00]} 3. Bc4 {[%emt 0:00:00]} Nf6 {[%emt 0:00:19]} 4. d3 {[%emt 0:00:00]} h6 {[%emt 0:00:48]} 5. c3 {[%emt 0:00:14]} d5 {[%emt 0:01:34]} 6. exd5 {[%emt 0:02:34]} Nxd5 {[%emt 0:00:37]} 7. h3 {[%emt 0:05:05]} Qd6 {[%emt 0:03:00]} 8. Qb3 {[%emt 0:04:20]} Nce7 {[%emt 0:06:25]} 9. O-O {[%emt 0:02:25]} c6 {[%emt 0:02:50]} 10. Re1 {[%emt 0:05:07]} Ng6 {[%emt 0:03:34]} 11. d4 {[%emt 0:09:01]} f6 {[%emt 0:02:28]} 12. Nbd2 {[%emt 0:02:31]} Kd8 {[%emt 0:01:38]} 13. Ne4 {[%emt 0:08:21]} Qc7 {[%emt 0:00:52]} 14. Bxd5 {[%emt 0:03:53]} cxd5 {[%emt 0:00:25]} 15. Qxd5+ {[%emt 0:00:11]} Qd7 {[%emt 0:02:02]} 16. Qb3 {[%emt 0:02:00]} exd4 {[%emt 0:01:27]} 17. Nxd4 {[%emt 0:02:17]} Ne5 {[%emt 0:00:53]} 18. Rd1 {[%emt 0:03:49]} Ke8 {[%emt 0:01:22]} 19. Bf4 {[%emt 0:03:50]} Nc6 {[%emt 0:02:21]} 20. Nb5 {[%emt 0:03:09]} 1-0